bitfinex/quotes_ETHUSD_20260102
["timestamp","ask_amount","ask_price","bid_price","bid_amount"]
[1767369265640,0.2347048,3084.0,3082.7,2.41283422]
[1767369265840,2.347048,3083.9,3082.7,2.39648464]
[1767369266039,0.58243003,3083.8,3082.8,2.39648464]
[1767369267051,3.06224204,3083.8,3082.8,2.39648464]
[1767369267268,2.47981201,3083.7,3082.8,2.39648464]
[1767369267472,2.47981201,3083.5,3082.2,2.38257091]
[1767369267781,2.47981201,3083.3,3082.2,2.9452742]
[1767369268842,2.47981201,3083.7,3082.2,2.9452742]
[1767369269049,4.09477153,3083.8,3082.4,2.38257091]
[1767369269375,0.852,3083.8,3082.6,2.38257091]
[1767369269582,3.33181201,3083.8,3082.8,2.38257091]
[1767369269752,3.33181201,3083.8,3082.9,2.38257091]
[1767369269953,0.852,3083.8,3083.0,2.38257091]
[1767369271968,0.852,3083.8,3083.1,2.38257091]
[1767369272170,0.85,3084.2,3083.3,2.38257091]
[1767369274096,0.002,3084.9,3083.8,2.38257091]
[1767369274383,0.002,3085.2,3084.4,2.38257091]
[1767369276587,0.002,3085.5,3084.6,2.38257091]
[1767369276754,2.47981201,3085.4,3084.4,2.620828]
[1767369276970,2.47981201,3085.4,3084.5,2.38257091]
[1767369277297,2.47981201,3085.4,3084.0,0.85]
[1767369277507,2.48081305,3084.9,3084.0,2.38257091]
[1767369277663,2.48081305,3084.9,3084.1,3.24237088]
[1767369277995,0.00100104,3084.9,3084.3,2.38257091]
[1767369278169,0.00100104,3084.9,3084.3,2.94505672]
[1767369278754,0.85,3085.2,3084.3,2.94505672]
[1767369278958,2.47981201,3085.1,3084.3,2.38257091]
[1767369279160,2.47981201,3084.9,3083.3,2.38257091]
[1767369279459,2.47981201,3084.7,3083.4,2.38257091]
[1767369279784,2.47981201,3084.5,3083.2,2.38257091]
[1767369279957,2.47981201,3084.3,3083.3,2.38257091]
[1767369281969,0.85,3084.3,3083.5,2.38257091]
[1767369282171,0.85,3084.7,3083.8,2.38257091]
[1767369282391,3.32981201,3084.7,3083.8,2.38257091]
[1767369282692,2.47981201,3084.7,3083.8,2.38257091]
[1767369282875,2.47981201,3084.7,3083.8,2.620828]
[1767369283279,0.85,3084.9,3083.9,2.38257091]
[1767369285060,0.85,3084.9,3084.2,2.38257091]
[1767369285276,2.52033327,3084.8,3083.3,5.62579038]
[1767369285491,2.47981201,3084.8,3083.5,2.38257091]
[1767369285799,2.47981201,3084.6,3083.5,2.620828]
[1767369286375,3.16698288,3084.9,3083.6,3.24291867]
[1767369286572,3.16698288,3084.9,3083.8,2.38257091]
[1767369286974,3.16698288,3084.9,3083.9,2.38257091]
[1767369287367,2.47981201,3084.8,3083.6,2.38257091]
[1767369287566,2.47981201,3084.8,3083.7,2.64465371]
[1767369289205,0.002,3085.5,3083.7,2.64465371]
[1767369289206,3.32981201,3084.7,3083.7,2.64465371]
[1767369289585,2.47981201,3084.6,3083.7,2.64465371]
[1767369290109,2.47981201,3084.4,3082.9,2.38257091]
[1767369290883,2.47981201,3084.4,3083.2,2.38257091]
[1767369291083,0.85,3084.3,3083.4,2.38257091]
[1767369291316,0.85,3084.3,3083.5,2.39890575]
[1767369292827,0.85,3084.3,3083.6,0.001]
[1767369293117,0.85,3084.3,3083.6,2.62356148]
[1767369293320,0.77239487,3084.3,3083.6,2.62356148]
[1767369293616,0.002,3084.9,3084.0,2.38257091]
[1767369294116,2.48181201,3084.9,3084.0,2.38257091]
[1767369294311,2.47981201,3084.8,3083.7,2.38257091]
[1767369294612,2.47981201,3084.8,3083.8,2.64492706]
[1767369296823,0.002,3084.9,3084.0,2.41979074]
[1767369296997,0.002,3084.9,3084.0,2.43611034]
[1767369297196,2.31111142,3084.9,3083.8,3.50509467]
[1767369297393,0.002,3084.9,3084.0,5.66233289]
[1767369297599,0.002,3084.9,3084.1,2.98602403]
[1767369297917,2.26859147,3085.4,3084.5,2.41979074]
[1767369298507,0.002,3085.5,3084.6,2.41979074]
[1767369298804,0.002,3085.6,3085.0,2.41979074]
[1767369299005,2.27059147,3086.0,3085.0,2.41979074]
[1767369299196,0.002,3086.0,3085.2,2.41979074]
[1767369300036,0.002,3086.0,3085.3,2.41979074]
[1767369300186,0.002,3086.1,3085.5,2.41979074]
[1767369300501,0.002,3086.4,3085.5,2.41979074]
[1767369300697,2.26859147,3087.2,3086.0,2.41979074]
[1767369301006,2.26859147,3087.2,3086.2,2.41979074]
[1767369301209,2.26859147,3087.7,3086.2,2.41979074]
[1767369301426,2.26859147,3087.1,3086.2,2.41979074]
[1767369301608,2.26859147,3087.5,3086.4,2.41979074]
[1767369302039,0.85,3087.7,3086.4,2.41979074]
[1767369302342,2.31107336,3087.8,3086.8,2.41979074]
[1767369302511,2.49969881,3087.7,3086.8,2.41979074]
[1767369303306,0.002,3087.8,3087.0,2.41979074]
[1767369304034,2.27059147,3087.8,3086.5,2.41979074]
[1767369304243,2.27059147,3087.8,3086.7,2.41979074]
[1767369304537,0.0404832,3087.7,3086.7,2.41979074]
[1767369305039,2.30907467,3087.7,3086.8,2.41979074]
[1767369305339,2.26859147,3087.7,3086.8,2.41979074]
[1767369305541,2.26859147,3087.6,3086.1,5.90209623]
[1767369305718,2.30907729,3087.5,3085.8,2.41979074]
[1767369306037,2.30907729,3087.5,3085.9,2.41979074]
[1767369306216,2.26859147,3087.3,3085.9,2.41979074]
[1767369306417,2.26859147,3087.1,3085.9,2.41979074]
[1767369306618,2.26859147,3086.9,3085.9,2.41979074]
[1767369306808,2.26859147,3087.3,3086.2,2.41979074]
[1767369307215,2.26859147,3087.2,3086.2,2.41979074]
[1767369307415,2.49545062,3087.1,3086.2,2.41979074]
[1767369308218,2.26859147,3087.0,3085.8,2.41979074]
[1767369308419,2.30908516,3086.9,3085.8,3.26879074]
[1767369308742,2.26859147,3086.9,3085.9,2.41979074]
[1767369308915,0.22685915,3087.1,3086.2,2.41979074]
[1767369309829,2.49545062,3087.1,3086.2,2.41979074]
[1767369310137,2.51813653,3087.0,3086.2,2.41979074]
[1767369310436,2.26859147,3086.8,3086.1,0.001]
[1767369310643,2.26859147,3086.6,3086.1,0.001]
[1767369311438,3.11759147,3086.9,3086.1,0.001]
[1767369311849,2.26859147,3086.8,3086.1,0.001]
[1767369312047,0.31175915,3086.7,3086.1,0.001]
[1767369312635,2.26859147,3086.8,3086.1,2.42079074]
[1767369312947,0.002,3087.4,3086.3,2.41979074]
[1767369313139,0.002,3087.4,3086.2,5.26728534]
[1767369313140,2.27059147,3087.8,3086.9,2.41979074]
[1767369313446,0.002,3087.8,3086.9,2.41979074]
[1767369313646,0.002,3087.8,3087.1,2.41979074]
[1767369313849,2.27059147,3088.5,3087.3,2.41979074]
[1767369314618,3.23795828,3088.4,3087.3,2.41979074]
[1767369314848,0.04047534,3088.3,3087.3,2.41979074]
[1767369315037,0.04047534,3088.3,3087.0,0.24197907]
[1767369315038,2.27059147,3088.0,3086.9,2.41979074]
[1767369315551,0.002,3088.0,3087.2,2.41979074]
[1767369316049,2.26859147,3088.4,3087.4,2.41979074]
[1767369316248,0.22705915,3088.3,3087.4,2.41979074]
[1767369316746,2.26859147,3088.4,3087.4,2.41979074]
[1767369316953,0.002,3088.6,3087.7,2.41979074]
[1767369317150,2.26859147,3089.1,3088.2,2.41979074]
[1767369317652,2.26859147,3089.5,3088.2,2.41979074]
[1767369317965,2.26859147,3089.5,3088.3,2.41979074]
[1767369318247,0.002,3089.3,3088.3,2.41979074]
[1767369319448,0.22905915,3089.3,3088.3,2.41979074]
[1767369319651,0.22905915,3089.3,3088.4,2.41979074]
[1767369321353,0.002,3089.3,3088.5,2.41979074]
[1767369322923,0.002,3089.3,3088.6,2.41979074]
[1767369324339,2.31105371,3089.3,3088.0,2.41979074]
[1767369324543,2.27059147,3089.3,3088.0,2.41979074]
[1767369324744,2.26859147,3089.1,3088.0,2.41979074]
[1767369324945,2.26859147,3089.1,3087.3,5.65879038]
[1767369325133,2.30905633,3089.1,3087.5,5.65855972]
[1767369325457,2.30905633,3089.1,3087.6,2.41979074]
[1767369326045,2.30905633,3089.1,3087.6,5.658485]
[1767369326247,2.30905633,3089.1,3087.6,2.41979074]
[1767369326248,2.46627213,3088.9,3087.6,2.41979074]
[1767369326447,2.46627213,3088.7,3087.6,2.41979074]
[1767369326651,2.33697974,3088.5,3087.6,2.41979074]
[1767369326850,2.33697974,3088.5,3087.3,0.001]
[1767369327034,2.33697974,3088.5,3087.4,2.38385758]
[1767369327236,0.23369797,3088.4,3087.5,2.38385758]
[1767369327565,3.18597974,3088.8,3087.7,2.38385758]
[1767369328135,2.33697974,3088.7,3087.7,3.23185758]
[1767369328335,2.33697974,3088.5,3087.7,3.23185758]
[1767369328668,2.33697974,3088.5,3087.7,2.38385758]
[1767369328866,2.33697974,3088.4,3087.4,2.38385758]
[1767369329050,2.894465,3088.3,3087.4,2.38385758]
[1767369329245,2.33697974,3088.3,3087.4,2.38385758]
[1767369329949,2.33697974,3088.2,3087.3,0.001]
[1767369330149,2.33697974,3088.2,3086.3,2.38385758]
[1767369330376,2.33697974,3088.0,3086.5,2.38385758]
[1767369330549,6.4764742,3088.1,3086.5,2.38385758]
[1767369330550,2.33697974,3087.8,3086.7,2.38385758]
[1767369330760,3.18597974,3087.8,3086.9,2.38385758]
[1767369330950,0.849,3087.8,3086.9,2.38385758]
[1767369331357,2.33697974,3087.7,3086.6,2.38385758]
[1767369331871,0.849,3087.8,3086.6,2.4001068]
[1767369332054,0.849,3087.8,3086.8,2.38385758]
[1767369332569,3.18597974,3087.8,3086.8,2.38385758]
[1767369332975,2.33697974,3087.7,3086.8,2.38385758]
[1767369333275,2.33697974,3087.7,3086.5,2.40110523]
[1767369333569,2.33697974,3087.7,3086.7,2.38385758]
[1767369333769,0.31859797,3087.6,3086.7,2.38385758]
[1767369333972,0.849,3087.8,3086.8,2.38385758]
[1767369334160,2.33697974,3088.4,3086.9,2.38385758]
[1767369334365,3.18597974,3088.3,3087.1,2.38385758]
[1767369334559,3.18597974,3088.3,3087.0,3.2555611]
[1767369334560,2.33697974,3088.2,3087.0,3.2555611]
[1767369334970,2.33697974,3088.2,3087.0,0.01623662]
[1767369335158,2.33697974,3088.0,3086.8,3.23957758]
[1767369335561,2.33697974,3088.0,3087.0,3.239387]
[1767369335768,2.33697974,3088.0,3086.9,3.23945675]
[1767369335966,2.33697974,3088.0,3087.0,2.38385758]
[1767369336167,2.33697974,3088.0,3087.1,2.38385758]
[1767369336367,2.33697974,3088.0,3087.1,2.94618215]
[1767369336591,5.57534881,3088.0,3087.1,2.94618215]
[1767369336753,2.33697974,3087.9,3087.1,2.38385758]
[1767369336948,0.64240237,3088.1,3087.1,2.38385758]
[1767369336949,0.849,3087.8,3087.1,2.38385758]
[1767369337375,2.33498181,3088.2,3087.4,2.38385758]
[1767369338279,2.33697974,3088.4,3087.4,2.38385758]
[1767369338461,2.89446498,3088.3,3087.4,2.38385758]
[1767369338973,2.89446498,3088.3,3087.4,2.38485758]
[1767369339977,2.33697974,3088.2,3087.4,2.38485758]
[1767369340586,2.3774577,3088.1,3087.4,2.38485758]
[1767369340965,2.33697974,3088.0,3087.4,0.001]
[1767369341157,2.33697974,3087.8,3086.7,2.38385758]
[1767369341561,2.33697974,3087.8,3086.8,2.38385758]
[1767369341774,2.33697974,3087.8,3086.9,2.38385758]
[1767369342480,2.33697974,3087.8,3086.6,2.38385758]
[1767369342687,2.33697974,3087.7,3086.6,2.38385758]
[1767369342979,2.95069798,3087.7,3086.7,2.94633096]
[1767369343190,2.33697974,3087.6,3086.7,2.94633096]
[1767369343388,2.33697974,3087.6,3086.7,2.38385758]
[1767369343700,2.33697974,3087.6,3086.6,2.38385758]
[1767369343861,2.89855166,3087.9,3086.7,2.38385758]
[1767369344064,6.13699925,3087.9,3086.7,2.38385758]
[1767369344286,2.89855166,3087.9,3086.9,2.38385758]
[1767369344758,2.33697974,3087.9,3086.9,2.38385758]
[1767369344981,2.33697974,3088.3,3087.1,2.38385758]
[1767369346758,2.33697974,3088.3,3087.3,2.38385758]
[1767369346989,2.33697974,3088.8,3087.5,2.38385758]
[1767369347870,0.0404701,3088.7,3087.5,2.38385758]
[1767369348202,2.33897974,3089.3,3087.9,2.38385758]
[1767369348496,0.002,3089.3,3088.1,2.38385758]
[1767369348700,0.002,3089.3,3088.0,0.848]
[1767369348701,0.002,3089.3,3088.3,2.38385758]
[1767369348900,0.849,3089.8,3088.9,2.38385758]
[1767369349398,2.33897974,3089.9,3088.9,2.70704334]
[1767369349602,0.002,3089.9,3088.9,2.70704334]
[1767369350972,0.002,3089.9,3089.1,2.38385758]
[1767369351776,2.33897974,3090.5,3089.5,2.38385758]
[1767369352297,0.002,3090.5,3089.5,2.38385758]
[1767369352485,0.002,3090.5,3089.7,2.38385758]
[1767369352887,0.002,3090.5,3089.8,2.38385758]
[1767369353402,0.002,3091.1,3090.2,2.38385758]
[1767369353574,2.33897974,3091.8,3090.9,2.38385758]
[1767369353768,2.33897974,3091.8,3090.9,2.62224334]
[1767369354895,2.37741057,3091.7,3090.9,2.62224334]
[1767369355091,2.37741057,3091.7,3090.9,2.38385758]
[1767369355290,0.04043213,3091.6,3090.9,2.38385758]
[1767369355503,2.33697974,3091.7,3090.9,2.38385758]
[1767369355663,0.002,3091.8,3091.0,2.38385758]
[1767369356184,2.37898686,3092.3,3091.4,2.46521724]
[1767369356371,2.61488555,3092.2,3091.4,2.46521724]
[1767369356770,0.23789869,3092.2,3091.5,2.46521724]
[1767369356970,0.002,3092.3,3091.5,2.46521724]
[1767369357281,2.37698686,3092.2,3091.2,3.31321724]
[1767369357475,2.37698686,3092.2,3091.2,2.46521724]
[1767369357688,2.37698686,3092.0,3090.6,2.46521724]
[1767369358001,2.37698686,3091.8,3090.7,2.46521724]
[1767369358374,2.37698686,3091.6,3090.2,2.46521724]
[1767369358807,3.23467572,3091.5,3090.3,2.46521724]
[1767369359011,2.37698686,3091.4,3090.3,2.46521724]
[1767369360708,0.848,3091.5,3090.4,2.46521724]
[1767369360869,0.848,3091.5,3090.7,2.46521724]
[1767369361068,0.848,3091.5,3090.0,3.23620549]
[1767369361069,2.37698686,3091.4,3089.9,2.46521724]
[1767369361302,2.37698686,3091.2,3089.9,2.46521724]
[1767369361704,2.37698686,3091.2,3089.7,2.46521724]
[1767369361705,2.37698686,3091.0,3089.7,2.46521724]
[1767369361995,2.37698686,3091.0,3090.0,2.46521724]
[1767369362189,0.23769869,3090.9,3090.0,2.46521724]
[1767369362388,2.61468555,3090.9,3090.0,2.46521724]
[1767369362605,2.37698686,3090.7,3089.6,2.46521724]
[1767369362771,0.0404426,3090.8,3089.6,2.46521724]
[1767369362772,2.37698686,3090.5,3089.6,2.46521724]
[1767369362971,2.37698686,3090.4,3089.1,2.46521724]
[1767369363184,0.56128076,3090.3,3089.6,2.46521724]
[1767369363395,0.23769869,3090.9,3089.8,2.46521724]
[1767369363708,2.37698686,3090.8,3089.8,2.46521724]
[1767369364914,2.37698686,3090.8,3089.0,5.26728534]
[1767369364915,2.37698686,3090.4,3089.2,2.46521724]
[1767369365115,2.37698686,3090.4,3088.9,2.788403]
[1767369365319,2.37698686,3090.4,3089.0,5.70244415]
[1767369365504,2.37698686,3090.4,3089.1,2.46521724]
[1767369365691,6.47144474,3090.5,3089.1,2.46521724]
[1767369365692,2.37698686,3090.2,3089.1,5.702337]
[1767369365892,0.88484316,3090.3,3089.3,2.46521724]
[1767369365893,0.848,3090.1,3089.3,2.46521724]
[1767369366100,3.22498686,3090.1,3088.9,2.788403]
[1767369366503,3.22498686,3090.1,3089.1,2.46521724]
[1767369367114,3.22498686,3090.1,3089.8,0.001]
[1767369367318,0.32249869,3090.0,3089.8,0.001]
[1767369368020,2.69948555,3090.0,3088.8,2.46521724]
[1767369368317,2.69948555,3090.0,3087.9,5.26728534]
[1767369368318,2.69948555,3090.0,3088.3,2.46521724]
[1767369368525,2.69948555,3090.0,3088.4,2.46521724]
[1767369369119,2.37698686,3089.8,3088.5,2.46521724]
[1767369369310,2.37698686,3089.6,3088.5,2.46521724]
[1767369369492,2.37698686,3089.5,3088.5,2.46521724]
[1767369369697,3.22498686,3089.5,3088.5,2.46521724]
[1767369370437,0.56133376,3089.7,3088.5,2.46521724]
[1767369370723,2.37698686,3089.4,3087.6,2.46521724]
[1767369370892,5.26728534,3089.5,3087.6,2.46521724]
[1767369370893,6.47437764,3089.1,3087.6,2.46521724]
[1767369371099,2.37698686,3088.9,3087.6,2.46521724]
[1767369373332,5.61440676,3088.9,3087.7,2.46521724]
[1767369373729,2.53698686,3089.9,3087.7,2.46521724]
[1767369374031,2.37698686,3089.5,3087.8,2.46521724]
[1767369375028,2.41744648,3089.5,3087.8,2.46521724]
[1767369375404,2.37698686,3089.3,3087.8,2.46521724]
[1767369375602,2.37698686,3089.1,3087.8,2.46521724]
[1767369376412,2.37698686,3089.1,3087.5,0.001]
[1767369376610,2.37698686,3088.9,3087.5,2.46621724]
[1767369376904,2.37698686,3088.7,3087.5,2.46621724]
[1767369377314,2.37698686,3088.7,3087.5,0.001]
[1767369377512,2.37698686,3088.5,3087.5,0.001]
[1767369378826,2.37698686,3088.5,3086.8,2.46621724]
[1767369379131,2.37698686,3088.3,3087.1,2.46521724]
[1767369379527,2.37698686,3088.2,3086.9,2.46521724]
[1767369379933,2.37698686,3088.2,3087.1,2.46521724]
[1767369380125,1.20901255,3088.4,3087.4,2.46521724]
[1767369380315,0.849,3088.4,3087.4,2.46521724]
[1767369380723,3.22598686,3088.4,3087.4,2.46521724]
[1767369381732,2.37698686,3088.3,3087.1,2.46521724]
[1767369383212,2.4174622,3088.3,3087.1,2.46521724]
[1767369383605,2.37698686,3088.1,3087.1,2.46521724]
[1767369383837,2.37698686,3087.9,3086.9,2.46521724]
[1767369384041,3.22598686,3087.9,3086.9,2.46521724]
[1767369385123,3.22598686,3087.9,3087.0,2.46621724]
[1767369385337,2.37698686,3087.8,3087.0,2.46621724]
[1767369385844,2.37698686,3087.8,3086.8,0.001]
[1767369385845,2.37698686,3087.6,3086.8,0.001]
[1767369386840,0.849,3087.5,3086.8,2.47227558]
[1767369387427,2.2575897,3087.4,3086.8,0.001]
[1767369387631,2.2575897,3087.4,3086.5,2.47227558]
[1767369387809,5.49656374,3087.4,3086.5,2.47227558]
[1767369388011,0.849,3087.5,3086.5,2.47227558]
[1767369388012,2.89214607,3087.3,3086.5,2.47227558]
[1767369388215,2.2575897,3087.3,3086.1,0.001]
[1767369389111,2.2575897,3087.6,3086.6,2.47127558]
[1767369389347,0.32259869,3087.7,3086.8,2.47127558]
[1767369389714,2.58018839,3087.7,3086.8,2.47127558]
[1767369389935,2.58018839,3087.7,3086.9,2.47127558]
[1767369390631,2.2575897,3088.0,3086.9,2.47127558]
[1767369391225,2.2575897,3088.4,3086.9,2.47127558]
[1767369391530,2.2575897,3088.2,3087.1,2.47127558]
[1767369391731,2.2575897,3088.0,3087.1,2.47127558]
[1767369392041,2.2575897,3087.8,3086.9,2.47127558]
[1767369392240,2.48334867,3087.8,3086.9,2.47127558]
[1767369393725,2.48334867,3087.8,3086.7,3.31927558]
[1767369394128,2.2575897,3087.6,3086.7,3.31927558]
[1767369394333,2.2575897,3087.4,3086.7,2.47127558]
[1767369394545,2.2575897,3087.4,3086.9,0.001]
[1767369394848,0.22575897,3087.3,3086.9,0.001]
[1767369395551,2.2575897,3087.1,3086.1,0.001]
[1767369396046,0.849,3087.2,3086.2,2.47127558]
[1767369396341,2.2575897,3087.1,3086.2,2.47127558]
[1767369398443,2.2575897,3087.3,3086.2,2.47127558]
[1767369400543,5.49668643,3087.3,3086.2,2.47127558]
[1767369400853,2.80725834,3087.2,3086.2,2.47127558]
[1767369401863,2.2575897,3087.2,3086.2,2.47127558]
[1767369404433,2.2575897,3087.2,3086.2,5.71148999]
[1767369404631,2.2575897,3087.2,3086.3,2.47127558]
[1767369405042,2.2575897,3087.2,3086.4,2.47127558]
[1767369406144,2.2575897,3087.2,3086.1,2.47227558]
[1767369406376,2.2575897,3087.0,3085.8,2.47227558]
[1767369406880,2.2575897,3087.0,3085.7,2.47127558]
[1767369407240,2.2575897,3086.8,3085.7,2.47127558]
[1767369407951,2.2575897,3086.8,3085.6,0.001]
[1767369408155,2.2575897,3086.6,3085.6,0.001]
[1767369408362,0.849,3086.7,3085.3,2.47127558]
[1767369408363,2.2575897,3086.4,3085.3,2.47127558]
[1767369408670,2.2575897,3086.4,3085.2,0.85]
[1767369409050,2.2575897,3086.4,3085.3,3.2411155]
[1767369409253,2.2575897,3086.4,3085.2,6.56250461]
[1767369409640,2.2575897,3086.3,3085.3,0.849]
[1767369409945,2.2575897,3086.1,3085.2,2.47227558]
[1767369410148,2.2575897,3086.1,3085.2,3.32127558]
[1767369411035,2.2575897,3086.1,3085.2,2.47227558]
[1767369411236,2.2575897,3086.1,3085.3,2.47127558]
[1767369411656,2.2575897,3086.0,3085.2,0.001]
[1767369411838,3.24034182,3086.1,3084.9,0.001]
[1767369411839,2.2575897,3085.8,3084.9,0.001]
[1767369412041,2.2575897,3085.6,3084.4,0.001]
[1767369413139,5.49847711,3085.6,3084.4,0.001]
[1767369413339,2.2575897,3085.5,3084.4,2.47227558]
[1767369413642,2.2575897,3085.3,3084.4,2.47227558]
[1767369413845,2.2575897,3085.1,3084.3,0.001]
[1767369414383,2.2575897,3085.1,3084.3,2.47227558]
[1767369415364,2.2575897,3085.0,3084.3,2.47227558]
[1767369415564,2.2575897,3085.0,3084.3,0.001]
[1767369415765,2.56824867,3085.0,3084.3,0.001]
[1767369416149,2.56824867,3085.0,3084.3,2.47352663]
[1767369416368,2.2575897,3085.0,3084.3,0.001]
[1767369416668,2.2575897,3085.0,3084.3,2.47352663]
[1767369416841,2.2575897,3085.0,3084.4,0.001]
[1767369417363,2.2575897,3085.0,3084.0,2.47352663]
[1767369417565,2.2575897,3085.0,3084.1,2.47252663]
[1767369417767,2.2575897,3085.0,3084.2,0.57160688]
[1767369418471,2.2575897,3085.0,3084.2,3.04413351]
[1767369419373,2.38832887,3085.4,3084.2,3.04413351]
[1767369419865,2.38832887,3085.4,3084.3,2.47252663]
[1767369420372,2.38832887,3085.2,3084.3,2.47252663]
[1767369420542,2.38832887,3085.0,3084.3,2.47252663]
[1767369420745,2.38832887,3085.0,3084.0,2.47352663]
[1767369421169,2.38832887,3085.0,3084.1,2.47252663]
[1767369421363,0.85,3085.1,3084.2,2.47252663]
[1767369421567,2.38832887,3084.9,3084.0,0.001]
[1767369421872,2.38832887,3084.7,3083.6,0.001]
[1767369422060,2.38832887,3084.5,3083.6,0.001]
[1767369422885,2.38832887,3084.3,3083.1,0.001]
[1767369423268,2.38832887,3083.8,3082.3,2.47252663]
[1767369423469,2.38832887,3083.4,3082.0,2.47252663]
[1767369423683,2.38832887,3083.4,3081.9,0.001]
[1767369423684,2.38832887,3083.3,3081.9,0.001]
[1767369423981,2.38832887,3082.8,3081.1,2.47252663]
[1767369424335,2.38832887,3082.6,3080.7,2.47252663]
[1767369424441,2.38832887,3082.3,3080.7,2.47252663]
[1767369424807,2.38832887,3081.8,3080.0,2.47252663]
[1767369425094,0.32383289,3082.5,3080.1,2.47252663]
[1767369425095,3.23832887,3081.7,3080.1,2.47252663]
[1767369425297,0.85,3081.6,3080.3,2.47252663]
[1767369425445,0.32383289,3082.5,3081.8,0.001]
[1767369425646,3.23832887,3082.4,3081.0,2.47252663]
[1767369425943,0.85,3082.4,3081.0,2.47252663]
[1767369426352,2.38832887,3083.6,3081.2,2.47252663]
[1767369426540,2.38832887,3083.4,3081.7,2.47252663]
[1767369427558,2.38832887,3083.2,3081.7,2.47252663]
[1767369428765,6.4865566,3083.3,3081.7,2.47252663]
[1767369428970,0.85,3083.2,3081.8,2.47252663]
[1767369429179,2.38832887,3083.1,3081.8,2.47252663]
[1767369429384,0.32383289,3083.0,3081.8,2.71977929]
[1767369429599,0.85,3083.2,3081.9,2.47252663]
[1767369430474,0.85,3083.6,3081.9,2.47252663]
[1767369430784,0.04053834,3083.5,3081.9,2.47252663]
[1767369431477,2.38832887,3083.3,3081.9,2.47252663]
[1767369431681,2.38832887,3083.1,3081.9,2.47252663]
[1767369431880,3.47716176,3083.0,3081.9,2.47252663]
[1767369432680,2.38832887,3083.6,3082.0,2.47252663]
[1767369432882,0.85,3083.2,3082.0,2.47252663]
[1767369433289,3.24252424,3084.1,3082.0,2.47252663]
[1767369433290,2.38832887,3084.1,3082.0,2.47252663]
[1767369433589,2.38832887,3083.9,3082.2,2.47252663]
[1767369434266,0.04053177,3084.0,3082.2,2.47252663]
[1767369434461,0.36883122,3084.0,3082.4,2.47252663]
[1767369434658,0.36883122,3084.0,3082.6,2.47252663]
[1767369434858,0.85,3084.2,3082.6,2.47252663]
[1767369435054,2.38832887,3084.3,3082.6,2.47252663]
[1767369435261,0.89052914,3084.2,3082.6,2.47252663]
[1767369435459,3.27885801,3084.2,3082.6,2.47252663]
[1767369435783,3.27885801,3084.2,3082.5,0.85]
[1767369435784,3.23832887,3084.2,3082.8,2.47252663]
[1767369435977,3.88638204,3084.2,3083.0,2.47252663]
[1767369436177,0.85,3084.2,3083.1,2.47252663]
[1767369437290,2.38832887,3084.6,3083.1,2.47252663]
[1767369437461,8.9126837,3084.6,3083.1,2.47252663]
[1767369437657,5.63024434,3084.6,3083.2,2.47252663]
[1767369437864,2.38832887,3084.5,3083.2,2.47252663]
[1767369438061,6.52435483,3084.6,3083.2,2.47252663]
[1767369438062,2.38832887,3084.3,3083.2,2.47252663]
[1767369438289,2.42885801,3084.2,3083.2,2.47252663]
[1767369439162,0.93179489,3084.4,3083.2,2.47252663]
[1767369439362,0.002,3084.2,3083.2,2.47252663]
[1767369439893,0.002,3084.2,3083.1,0.85]
[1767369439894,0.002,3084.2,3083.3,2.47252663]
[1767369440099,0.002,3084.2,3083.5,2.47252663]
[1767369440591,3.23832887,3084.7,3083.8,2.47252663]
[1767369440996,0.85,3084.7,3083.8,2.47252663]
[1767369441399,2.38832887,3084.6,3083.6,0.85]
[1767369441995,2.38832887,3084.5,3083.6,0.85]
[1767369442185,2.38832887,3084.3,3083.6,0.85]
[1767369442384,3.23832887,3084.7,3083.5,2.47252663]
[1767369442595,2.38832887,3084.5,3083.5,2.47252663]
[1767369442781,0.04052652,3084.4,3083.5,2.47252663]
[1767369443595,2.38832887,3084.5,3083.5,2.47252663]
[1767369443892,2.38832887,3084.5,3083.6,2.47252663]
[1767369444094,2.38832887,3085.3,3083.7,2.47252663]
[1767369445100,5.62953316,3085.3,3083.7,2.47252663]
[1767369445269,0.04051601,3085.2,3083.7,2.47252663]
[1767369445592,2.42884488,3085.2,3083.7,2.47252663]
[1767369445793,0.89112535,3085.1,3083.9,2.47252663]
[1767369445994,0.89112535,3085.1,3083.8,3.48991415]
[1767369445995,4.1325165,3085.1,3084.1,2.47252663]
[1767369446171,4.1325165,3085.1,3083.8,2.48692939]
[1767369446172,2.37503032,3085.0,3083.8,2.48692939]
[1767369446372,2.33451169,3085.0,3083.8,2.48692939]
[1767369446711,2.33451169,3085.0,3083.9,2.41577957]
[1767369447311,0.04051995,3084.9,3083.9,2.41577957]
[1767369447989,2.33451169,3085.0,3084.0,2.41577957]
[1767369448172,2.536998,3084.9,3084.0,2.41577957]
[1767369448779,2.30354683,3084.7,3083.7,0.85]
[1767369448979,2.30354683,3084.7,3083.8,2.41577957]
[1767369449905,2.30354683,3084.7,3083.9,2.41577957]
[1767369450287,2.30354683,3084.6,3083.7,0.85]
[1767369450492,2.8621356,3084.5,3083.5,2.41577957]
[1767369450702,2.8621356,3084.5,3083.6,2.41577957]
[1767369450902,2.30354683,3084.5,3083.6,2.41577957]
[1767369452513,2.30354683,3084.4,3083.6,2.41577957]
[1767369453414,2.30354683,3084.4,3083.4,2.41577957]
[1767369453990,2.30354683,3084.4,3083.0,2.41577957]
[1767369453991,2.30354683,3084.2,3083.0,2.41577957]
[1767369454189,2.30354683,3084.2,3083.1,2.41577957]
[1767369454484,2.30354683,3084.0,3083.1,2.41577957]
[1767369454684,2.30354683,3084.0,3083.1,0.001]
[1767369454888,2.30354683,3084.0,3082.8,0.85]
[1767369455327,2.30354683,3083.8,3082.4,2.41577957]
[1767369455534,2.30354683,3083.8,3082.6,3.24394518]
[1767369455700,2.30354683,3083.6,3082.7,3.24384211]
[1767369455888,2.30354683,3083.6,3082.4,2.41577957]
[1767369456091,2.30354683,3083.6,3082.5,6.48816027]
[1767369456402,2.30354683,3083.6,3082.5,3.24404024]
[1767369456602,2.30354683,3083.5,3082.4,5.65996562]
[1767369456794,2.30354683,3083.4,3082.5,0.97542092]
[1767369456995,2.30354683,3083.4,3082.6,2.41577957]
[1767369457790,2.30354683,3083.4,3082.5,0.97542092]
[1767369458163,2.30354683,3083.7,3082.6,2.41577957]
[1767369458593,2.30354683,3083.7,3082.3,2.41577957]
[1767369458918,2.30354683,3083.5,3082.3,2.41577957]
[1767369459096,2.30354683,3083.3,3082.4,2.41577957]
[1767369459303,0.85,3083.4,3082.5,2.41577957]
[1767369459611,3.15354683,3083.4,3082.5,2.41577957]
[1767369459918,2.30354683,3083.1,3082.0,2.41577957]
[1767369460120,2.30354683,3082.9,3081.9,0.001]
[1767369460421,2.30354683,3082.7,3081.9,0.001]